bitfinex-derivatives/quotes_SOLF0:USTF0_20250829
["timestamp","ask_amount","ask_price","bid_price","bid_amount"]
[1756470865327,3.58479397,213.21,212.96,30.20472284]
[1756470865728,3.58479397,213.21,213.02,30.20472284]
[1756470866128,315.3,213.27,212.94,37.44472284]
[1756470866129,11.20479397,213.2,212.94,37.44472284]
[1756470866323,3.58479397,213.19,212.94,7.24]
[1756470866528,11.20479397,213.18,212.95,30.20472284]
[1756470866725,3.58479397,213.17,212.95,30.20472284]
[1756470866931,7.62,213.16,212.89,30.20472284]
[1756470867225,3.58479397,213.15,212.89,30.20472284]
[1756470867425,13.99,213.13,212.79,315.3]
[1756470867629,21.61,213.11,212.77,7.24]
[1756470867830,7.62,213.09,212.77,7.24]
[1756470868029,3.58479397,213.08,212.89,30.20472284]
[1756470868230,3.58479397,213.08,212.84,7.24]
[1756470869131,7.62,213.11,212.86,7.24]
[1756470869433,3.51495931,213.1,212.86,7.24]
[1756470869728,3.51495931,213.09,212.86,7.24]
[1756470869926,7.62,213.05,212.74,7.24]
[1756470870126,3.51495931,213.04,212.74,7.24]
[1756470870328,30.20472284,212.99,212.74,7.24]
[1756470870527,326.47495931,212.98,212.74,7.24]
[1756470870735,7.62,212.96,212.67,7.24]
[1756470870935,3.51495931,212.95,212.68,62.0]
[1756470871328,3.51495931,212.95,212.59,7.24]
[1756470871329,7.62,212.91,212.59,7.24]
[1756470871631,225.26,212.94,212.5,7.24]
[1756470871632,7.62,212.79,212.5,7.24]
[1756470871837,7.62,212.79,212.59,4.233]
[1756470872030,7.62,213.0,212.61,7.24]
[1756470872330,7.62,212.94,212.61,7.24]
[1756470872531,7.62,212.94,212.68,7.24]
[1756470872734,30.20472284,212.83,212.58,7.24]
[1756470872932,225.26,212.87,212.62,4.2325]
[1756470873132,7.62,212.88,212.58,7.24]
[1756470873337,7.62,212.97,212.68,30.20472284]
[1756470873544,315.36,213.0,212.75,7.24]
[1756470873739,7.62,212.99,212.75,7.24]
[1756470874429,7.62,212.99,212.76,62.0]
[1756470874638,7.62,212.99,212.77,30.20472284]
[1756470874835,225.34,213.06,212.84,7.24]
[1756470875030,225.34,213.06,212.91,4.2266]
[1756470875338,225.34,213.06,212.84,7.24]
[1756470875732,30.20472284,213.08,212.84,7.24]
[1756470875937,7.62,213.01,212.71,7.24]
[1756470876135,7.62,212.95,212.71,7.24]
[1756470876330,540.86,212.94,212.71,7.24]
[1756470876534,345.70472284,212.94,212.63,37.44472284]
[1756470876735,345.70472284,212.94,212.66,4.2317]
[1756470876931,315.5,212.94,212.7,7.7]
[1756470877337,315.5,212.94,212.73,4.2303]
[1756470877638,315.5,212.94,212.7,37.90472284]
[1756470878036,315.5,212.94,212.71,62.0]
[1756470878840,30.20472284,212.9,212.6,7.7]
[1756470879038,30.20472284,212.84,212.6,7.7]
[1756470879343,315.5,212.94,212.66,30.20472284]
[1756470879636,30.20472284,212.87,212.59,7.7]
[1756470879835,7.19,212.86,212.59,7.7]
[1756470880033,7.19,212.84,212.59,7.7]
[1756470880241,228.7941669,212.83,212.59,7.7]
[1756470880443,7.19,212.84,212.59,7.7]
[1756470880444,232.61,212.84,212.62,4.2323]
[1756470881038,232.61,212.84,212.65,4.2318]
[1756470881340,3.3784366,212.83,212.59,7.7]
[1756470881540,30.20472284,212.81,212.56,4.2336]
[1756470881739,7.19,212.79,212.5,7.7]
[1756470881942,3.3784366,212.78,212.5,7.7]
[1756470882145,3.3784366,212.78,212.43,7.7]
[1756470882146,44.19472284,212.75,212.43,7.7]
[1756470882444,7.19,212.68,212.39,30.20472284]
[1756470882641,10.5684366,212.67,212.39,30.20472284]
[1756470882835,3.3784366,212.66,212.39,30.20472284]
[1756470883036,7.19,212.67,212.45,30.20472284]
[1756470883441,7.19,212.67,212.44,30.20472284]
[1756470884336,30.20472284,212.65,212.4,7.7]
[1756470884538,30.20472284,212.79,212.37,7.7]
[1756470884739,10.56943588,212.78,212.55,4.2338]
[1756470884942,3.37943588,212.77,212.55,4.2338]
[1756470885143,7.19,212.78,212.55,4.2338]
[1756470885339,7.19,212.78,212.57,4.2333]
[1756470885640,7.19,212.78,212.53,7.7]
[1756470885837,7.19,212.78,212.63,4.2321]
[1756470886242,7.19,212.78,212.53,7.7]
[1756470886840,315.72,212.82,212.59,30.20472284]
[1756470887033,315.72,212.82,212.6,7.7]
[1756470887234,7.19,212.94,212.66,7.7]
[1756470887434,5.10464095,213.28,212.52,7.22630758]
[1756470887435,315.78,212.98,212.79,4.2289]
[1756470887643,37.39472284,213.01,212.74,7.7]
[1756470887836,37.39472284,213.01,212.75,62.0]
[1756470888037,7.19,212.99,212.67,30.20472284]
[1756470888234,7.19,212.94,212.65,7.7]
[1756470888434,3.36865435,212.93,212.65,7.7]
[1756470888640,7.19,212.92,212.65,7.7]
[1756470888842,225.58,213.02,212.52,4.81753838]
[1756470888843,7.19,212.88,212.57,7.7]
[1756470889145,541.38,212.87,212.57,7.7]
[1756470889647,541.38,212.87,212.58,30.20472284]
[1756470890044,315.8,212.87,212.62,7.7]
[1756470891138,7.19,212.86,212.62,7.7]
[1756470891338,7.19,212.86,212.59,7.7]
[1756470891539,225.58,212.85,212.53,30.20472284]
[1756470891740,30.20472284,212.83,212.53,30.20472284]
[1756470891940,7.19,212.7,212.42,37.90472284]
[1756470892140,13.99,212.76,212.42,7.7]
[1756470892141,7.19,212.68,212.42,7.7]
[1756470892342,7.19,212.66,212.42,7.7]
[1756470892542,225.58,212.65,212.42,7.7]
[1756470892742,232.77,212.66,212.42,7.7]
[1756470893138,232.77,212.66,212.35,30.20472284]
[1756470893139,7.19,212.61,212.35,30.20472284]
[1756470893340,7.19,212.61,212.34,7.7]
[1756470893737,225.58,212.6,212.34,7.7]
[1756470894248,225.58,212.6,212.35,62.0]
[1756470894642,7.19,212.56,212.34,7.7]
[1756470895346,7.19,212.63,212.27,13.99]
[1756470895647,541.44,212.69,212.42,7.7]
[1756470895836,315.8,212.69,212.42,7.7]
[1756470896242,315.8,212.69,212.46,7.7]
[1756470897345,315.8,212.69,212.52,7.7]
[1756470897646,315.8,212.69,212.53,62.0]
[1756470898142,315.8,212.69,212.45,7.7]
[1756470899543,225.7,212.68,212.45,7.7]
[1756470899746,7.19,212.67,212.41,30.20472284]
[1756470899946,225.7,212.66,212.41,30.20472284]
[1756470900139,21.18,212.65,212.29,7.7]
[1756470900345,21.18,212.6,212.29,30.20472284]
[1756470900542,7.19,212.54,212.23,30.20472284]
[1756470900744,315.8,212.69,212.23,30.20472284]
[1756470900745,7.19,212.71,212.37,7.7]
[1756470901040,7.19,212.71,212.43,69.7]
[1756470901239,171.26,212.7,212.43,69.7]
[1756470901447,7.19,212.68,212.34,7.7]
[1756470901647,7.19,212.62,212.29,30.20472284]
[1756470901843,171.26,212.7,212.2,3.61315379]
[1756470901844,7.19,212.56,212.2,3.61315379]
[1756470902052,319.30064512,212.61,212.15,4.81753838]
[1756470902053,30.20472284,212.51,212.17,7.7]
[1756470902246,7.19,212.5,212.17,37.90472284]
[1756470902444,7.19,212.44,212.09,3.61315379]
[1756470902645,7.19,212.36,212.06,3.61315379]
[1756470902849,225.72,212.35,212.02,30.20472284]
[1756470903152,7.19,212.34,211.98,7.7]
[1756470903349,7.19,212.33,211.98,7.7]
[1756470903546,30.20472284,212.2,211.9,3.61315379]
[1756470903850,30.20472284,212.2,211.79,9.63507677]
[1756470903851,7.19,212.13,211.76,3.61315379]
[1756470904054,137.46,212.12,211.76,7.7]
[1756470904248,30.20472284,212.07,211.71,30.20472284]
[1756470904445,137.99,212.11,211.68,7.7]
[1756470904657,7.19,211.92,211.54,3.61315379]
[1756470904855,7.19,211.9,211.54,7.7]
[1756470905049,7.19,211.9,211.62,7.7]
[1756470905249,316.16,211.95,211.65,7.7]
[1756470905445,7.19,211.94,211.65,7.7]
[1756470905650,37.39472284,211.86,211.56,7.7]
[1756470905853,7.19,211.86,211.56,7.7]
[1756470906050,256.10472284,211.85,211.56,7.7]
[1756470906355,7.19,211.81,211.56,7.7]
[1756470906553,30.20472284,211.71,211.43,7.22]
[1756470906758,7.68,211.7,211.43,7.22]
[1756470907155,7.68,211.7,211.31,3.61315379]
[1756470907156,316.3,211.73,211.47,7.22]
[1756470907362,233.66,211.79,211.49,7.22]
[1756470907662,233.66,211.79,211.54,7.22]
[1756470907663,30.20472284,211.77,211.54,7.22]
[1756470907965,233.66,211.79,211.54,7.22]
[1756470908257,7.68,211.88,211.58,7.22]
[1756470908458,7.68,211.89,211.65,30.20472284]
[1756470908660,7.68,211.89,211.45,7.22]
[1756470908963,7.68,211.78,211.52,7.22]
[1756470909150,30.20472284,211.74,211.42,30.20472284]
[1756470909355,30.20472284,211.68,211.41,7.22]
[1756470909556,7.68,211.61,211.23,7.22]
[1756470909757,30.20472284,211.5,211.2,425.26320222]
[1756470910058,7.68,211.48,211.22,30.20472284]
[1756470910259,7.68,211.48,211.23,7.22]
[1756470910661,7.68,211.58,211.3,7.22]
[1756470910955,382.86,211.66,211.36,30.20472284]
[1756470911159,30.20472284,211.71,211.37,7.22]
[1756470911351,7.68,211.68,211.37,7.22]
[1756470911551,52.42782241,211.62,211.22,7.22]
[1756470911757,7.68,211.58,211.22,7.22]
[1756470911960,7.68,211.58,211.26,7.22]
[1756470912154,7.68,211.58,211.21,104.17123255]
[1756470912155,182.66,211.65,211.32,52.42782241]
[1756470912357,7.68,211.67,211.33,7.22]
[1756470912659,316.74,211.73,211.37,7.22]
[1756470912855,316.74,211.73,211.45,7.22]
[1756470913058,7.68,211.72,211.45,7.22]
[1756470913262,52.42782241,211.71,211.36,52.42782241]
[1756470913462,7.68,211.7,211.35,7.22]
[1756470913660,7.68,211.63,211.29,316.84]
[1756470913865,7.68,211.63,211.26,7.22]
[1756470914260,7.68,211.63,211.28,7.22]
[1756470914457,7.68,211.63,211.27,62.0]
[1756470914458,60.10782241,211.72,211.37,52.42782241]
[1756470914663,7.68,211.72,211.39,7.22]
[1756470914869,7.68,211.72,211.38,317.02]
[1756470914870,7.68,211.72,211.46,7.22]
[1756470915361,226.48,211.79,211.46,7.22]
[1756470915555,7.68,211.76,211.46,7.22]
[1756470915761,7.68,211.69,211.38,317.02]
[1756470916055,7.68,211.69,211.21,104.17123255]
[1756470916056,317.12,211.69,211.24,317.12]
[1756470916363,7.68,211.51,211.21,104.17123255]
[1756470916660,7.68,211.49,211.21,104.17123255]
[1756470916857,52.42782241,211.54,211.24,7.22]
[1756470917063,7.68,211.59,211.24,7.22]
[1756470917360,7.68,211.59,211.24,59.64782241]
[1756470917666,52.42782241,211.55,211.25,62.0]
[1756470917861,7.68,211.59,211.25,7.22]
[1756470918063,52.42782241,211.75,211.32,7.22]
[1756470918263,7.68,211.71,211.34,7.22]
[1756470918460,7.68,211.71,211.38,7.22]
[1756470918961,7.68,211.71,211.42,7.22]
[1756470919360,52.42782241,211.68,211.38,4.2573]
[1756470919560,7.68,211.67,211.28,52.42782241]
[1756470919760,7.68,211.6,211.24,7.22]
[1756470919960,7.68,211.58,211.26,7.22]
[1756470920360,7.68,211.55,211.19,317.28]
[1756470920664,7.68,211.54,211.22,7.22]
[1756470920866,7.68,211.54,211.28,52.42782241]
[1756470921160,7.68,211.54,210.98,13.99]
[1756470921161,52.42782241,211.57,211.17,7.22]
[1756470921365,7.68,211.49,211.17,59.64782241]
[1756470921565,7.68,211.49,211.18,7.22]
[1756470922669,7.68,211.49,211.24,7.22]
[1756470922862,317.4,211.51,211.24,7.22]
[1756470923257,52.42782241,211.49,211.24,7.22]
[1756470923457,317.4,211.51,211.07,52.42782241]
[1756470923458,52.42782241,211.42,211.07,52.42782241]
[1756470923761,21.67,211.41,211.04,7.22]
[1756470923963,226.74,211.4,211.04,7.22]
[1756470924163,226.78,211.39,211.1,7.22]
[1756470924561,7.68,211.32,210.95,52.42782241]
[1756470924863,521.9,211.31,210.96,59.64782241]
[1756470925063,317.52,211.31,210.97,7.22]
[1756470925257,317.52,211.31,210.87,331.47]
[1756470925258,317.52,211.31,211.04,7.22]
[1756470925569,317.52,211.31,211.05,7.22]
[1756470925759,52.42782241,211.86,211.05,7.22]
[1756470925760,234.52,211.44,211.05,317.58]
[1756470925961,52.42782241,211.39,211.06,7.22]
[1756470926157,7.68,211.38,211.1,4.2628]
[1756470926368,7.68,211.38,211.06,7.22]
[1756470926761,7.68,211.38,211.18,4.2613]
[1756470926966,7.68,211.38,211.06,7.22]
[1756470927169,234.58,211.38,211.06,7.22]
[1756470927669,234.58,211.38,211.06,69.22]
[1756470927968,52.42782241,211.26,210.83,7.22]
[1756470928161,7.68,211.18,210.87,52.42782241]
[1756470928366,7.68,211.18,210.88,7.22]
[1756470929473,7.68,211.14,210.88,7.22]
[1756470930169,52.42782241,211.01,210.76,7.22]
[1756470930373,7.68,211.0,210.63,7.22]
[1756470930669,7.68,211.0,210.71,7.22]
[1756470930869,227.0,211.12,210.7,52.42782241]
[1756470930870,7.68,211.1,210.73,7.22]
[1756470931168,7.68,211.1,210.78,7.22]
[1756470932372,52.42782241,211.17,210.82,7.22]
[1756470932965,7.68,211.09,210.82,7.22]
[1756470933374,7.68,211.17,211.01,4.2647]
[1756470933670,7.68,211.13,210.86,7.22]
[1756470934272,7.68,211.13,210.86,69.22]
[1756470934572,1361.86,211.28,210.87,7.22]
[1756470934772,7.68,211.27,210.91,52.42782241]
[1756470935070,7.68,211.27,210.93,7.22]
[1756470935275,7.68,211.27,210.99,7.22]
[1756470935676,52.42782241,211.34,211.02,7.22]
[1756470935870,7.68,211.33,211.02,7.22]
[1756470936071,52.42782241,211.34,211.02,7.22]
[1756470936271,7.68,211.33,211.02,7.22]
[1756470936976,7.68,211.33,210.69,1362.64]
[1756470936977,7.7,211.2,210.8,7.39]
[1756470937172,7.7,211.2,210.93,7.39]
[1756470937571,7.7,211.2,210.93,59.81782241]
[1756470937767,235.72782241,211.28,210.95,7.39]
[1756470937971,183.3,211.28,210.97,7.39]
[1756470938169,7.7,211.29,211.01,7.39]
[1756470938775,7.7,211.29,211.02,7.39]
[1756470939074,52.42782241,211.28,211.02,7.39]
[1756470939280,7.7,211.26,210.96,318.1]
[1756470939474,7.7,211.26,210.93,7.39]
[1756470939475,7.7,211.25,210.93,7.39]
[1756470939671,227.24,211.26,210.93,7.39]
[1756470939672,7.7,211.2,210.93,7.39]
[1756470940074,7.7,211.2,210.93,11.656]
[1756470940276,7.7,211.2,210.84,7.39]
[1756470941077,7.7,211.18,210.84,7.39]
[1756470941272,7.7,211.18,210.85,62.0]
[1756470941473,7.7,211.18,210.92,7.39]
[1756470941776,7.7,211.34,210.98,7.39]
[1756470942182,7.7,211.34,211.03,4.264]
[1756470942374,7.7,211.34,210.98,7.39]
[1756470942772,7.7,211.26,210.98,7.39]
[1756470942976,52.42782241,211.27,210.92,227.26]
[1756470943172,52.42782241,211.27,210.91,7.39]
[1756470943173,7.7,211.26,210.91,7.39]
[1756470943378,52.42782241,211.2,210.91,7.39]
[1756470943576,7.7,211.19,210.91,7.39]
[1756470943775,325.88,211.19,210.91,7.39]
[1756470943975,7.7,211.12,210.82,318.18]
[1756470944176,52.42782241,211.13,210.82,318.18]
[1756470944582,7.7,211.11,210.82,318.18]
[1756470944781,7.7,211.12,210.82,318.18]
[1756470945780,7.7,211.05,210.64,7.39]
[1756470945983,7.7,210.98,210.7,7.39]
[1756470946880,7.7,210.98,210.78,4.2691]
[1756470947082,52.42782241,211.06,210.71,52.42782241]
[1756470947386,7.7,211.05,210.77,4.2692]
[1756470947584,13.99,210.97,210.63,72.16917669]
[1756470947882,7.7,210.91,210.63,72.16917669]
[1756470948085,318.3,210.92,210.63,72.16917669]
[1756470948283,7.7,210.91,210.6,7.39]
[1756470948885,7.7,210.91,210.69,4.2708]
[1756470949082,7.7,210.91,210.62,7.39]
[1756470949684,52.42782241,211.09,210.67,7.39]
[1756470949889,52.42782241,211.09,210.74,7.39]
[1756470949890,7.7,211.08,210.74,7.39]
[1756470950588,7.7,211.01,210.74,7.39]
[1756470951091,7.7,211.01,210.74,11.6599]
[1756470951285,7.7,211.01,210.74,7.39]
[1756470952088,60.12782241,211.09,210.85,4.2677]
[1756470952292,7.7,211.09,210.84,7.39]
[1756470952490,7.7,211.19,210.84,7.39]
[1756470952688,7.7,211.19,210.92,4.2662]
[1756470952892,7.7,211.19,210.91,7.39]
[1756470953288,7.7,211.16,210.91,7.39]
[1756470954391,7.7,211.1,210.78,7.39]
[1756470955291,7.7,211.08,210.78,7.39]
[1756470955491,7.7,211.03,210.78,7.39]
[1756470955891,7.7,211.03,210.75,318.44]
[1756470956091,52.42782241,210.97,210.71,7.39]
[1756470956296,7.7,210.96,210.71,7.39]
[1756470957393,8.52544652,210.96,210.71,7.39]
[1756470957898,30.86560916,210.91,210.64,70.97842474]
[1756470958100,7.7,210.9,210.64,70.97842474]
[1756470958296,326.2,210.9,210.63,7.39]
[1756470958997,326.2,210.9,210.63,11.6622]
[1756470959396,326.2,210.9,210.67,4.2713]
[1756470959599,326.2,210.9,210.63,7.39]
[1756470959798,7.7,210.99,210.67,7.39]
[1756470959991,7.7,210.92,210.67,7.39]
[1756470960196,8.52553464,210.92,210.67,7.39]
[1756470960395,7.7,210.86,210.62,326.26247999]
[1756470960599,7.7,210.86,210.62,318.44]
[1756470960792,7.7,210.86,210.63,7.39]
[1756470961395,7.7,210.8,210.58,3.55007999]
[1756470961698,30.86560916,210.75,210.55,7.39]
[1756470961900,7.7,210.68,210.46,7.39]
[1756470962103,38.56560916,210.78,210.5,7.39]
[1756470962396,3.68634246,210.77,210.5,7.39]
[1756470962597,227.56,210.86,210.5,7.39]
[1756470962598,7.7,210.73,210.5,7.39]
[1756470962789,3.68634246,210.72,210.5,7.39]
[1756470962996,3.68634246,210.71,210.54,4.2739]
[1756470963197,3.68634246,210.7,210.5,7.39]
[1756470963402,7.7,210.73,210.5,7.39]
[1756470963601,38.56560916,210.73,210.5,7.39]
[1756470963900,7.7,210.73,210.5,7.39]
[1756470964102,7.7,210.86,210.57,7.39]
[1756470964299,3.57406543,210.85,210.57,7.39]
[1756470964499,7.7,210.82,210.57,7.39]
[1756470964896,318.56,210.87,210.57,10.94007999]
[1756470965099,3.57171975,210.86,210.68,4.2711]
[1756470965300,7.7,210.97,210.66,30.86560916]
[1756470965499,3.56545397,210.91,210.67,7.39]
[1756470965704,3.56545397,210.9,210.67,7.39]
[1756470965903,0.82553464,210.92,210.67,7.39]
[1756470966203,0.82553464,210.92,210.73,7.39]
[1756470966400,0.82553464,210.92,210.73,69.39]
[1756470966605,0.82553464,210.92,210.81,4.2684]
[1756470966802,0.82553464,210.92,210.74,3.55007999]
[1756470967102,0.82553464,210.92,210.75,7.6]
[1756470967601,0.82553464,210.92,210.75,11.15007999]
[1756470967908,0.82553464,210.92,210.82,3.55007999]
[1756470968102,0.82553464,210.92,210.79,3.55007999]
[1756470968303,0.82553464,210.92,210.8,3.55007999]
[1756470968500,0.82553464,210.92,210.77,3.55007999]
[1756470968701,0.82553464,210.92,210.78,3.55007999]
[1756470969200,0.82553464,210.92,210.77,11.15007999]
[1756470969399,0.82553464,210.92,210.81,3.55007999]
[1756470969599,0.82553464,210.92,210.82,65.55007999]
[1756470969802,7.37,211.05,210.84,11.15007999]
[1756470970107,7.37,211.19,210.9,3.55007999]
[1756470970404,7.37,211.19,210.92,11.15007999]
[1756470970598,7.37,211.19,210.96,3.55007999]
[1756470970800,7.37,211.19,210.95,3.55007999]
[1756470971000,7.37,211.19,210.94,3.55007999]
[1756470971308,7.37,211.19,210.97,3.55007999]
[1756470971503,7.37,211.19,210.99,7.6]
[1756470971708,7.37,211.27,211.04,3.55007999]
[1756470971903,21.66,211.31,211.09,7.6]
[1756470972099,7.37,211.34,211.16,3.55007999]
[1756470972308,30.86560916,211.39,211.15,7.6]
[1756470972505,318.62,211.51,211.23,7.6]
[1756470972805,318.62,211.51,211.27,7.6]
[1756470973001,7.37,211.6,211.32,3.55007999]
[1756470973200,7.37,211.6,211.36,7.6]
[1756470973402,318.62,211.66,211.36,7.6]
[1756470973609,7.37,211.7,211.42,30.86560916]
[1756470973809,7.37,211.7,211.43,11.15007999]
[1756470974007,318.56,211.8,211.43,11.15007999]
[1756470974008,7.37,211.79,211.49,7.6]
[1756470974306,7.37,211.76,211.49,7.6]
[1756470974510,7.37,211.76,211.43,318.52]
[1756470974511,30.86560916,211.65,211.39,3.55007999]
[1756470974711,7.37,211.64,211.38,7.6]
[1756470975110,7.37,211.58,211.3,11.15007999]
[1756470975404,7.37,211.52,211.21,7.6]
[1756470975605,227.46,211.62,211.21,7.6]
[1756470975606,7.37,211.46,211.21,7.6]
[1756470976408,7.37,211.59,211.36,30.86560916]
[1756470976607,7.37,211.68,211.37,62.0]
[1756470976813,7.37,211.77,211.49,30.86560916]
[1756470977017,7.37,211.77,211.5,7.6]
[1756470977514,7.37,211.72,211.36,7.6]
[1756470977706,7.37,211.72,211.43,7.6]
[1756470977913,14.21,211.71,211.43,7.6]
[1756470978111,7.37,211.72,211.43,7.6]
[1756470978112,7.37,211.63,211.43,7.6]
[1756470978508,7.37,211.63,211.32,227.38]
[1756470978509,7.37,211.8,211.44,52.36907102]
[1756470978807,7.37,211.8,211.52,7.6]
[1756470979210,7.37,211.72,211.52,7.6]
[1756470979413,7.37,211.7,211.38,7.6]
[1756470979609,52.36907102,211.62,211.28,7.6]
[1756470979811,7.37,211.61,211.28,7.6]
[1756470980011,7.37,211.57,211.28,7.6]
[1756470980607,7.37,211.57,211.19,71.59804003]
[1756470980811,318.14,211.71,211.24,52.36907102]
[1756470980812,52.36907102,211.61,211.24,52.36907102]
[1756470981012,7.37,211.6,211.25,7.6]
[1756470981212,0.82462501,211.48,211.25,7.6]
[1756470981404,7.37,211.6,211.25,7.6]
[1756470981715,7.37,211.58,211.25,7.6]
[1756470981915,241.45,211.62,211.25,7.6]
[1756470981916,0.82453709,211.43,211.25,7.6]
[1756470982109,7.37,211.61,211.32,7.6]
[1756470982510,325.51,211.71,211.39,7.6]
[1756470982705,7.37,211.71,211.41,7.6]
[1756470983617,7.37,211.71,211.42,62.0]
[1756470983916,7.37,211.65,211.41,7.6]
[1756470984116,52.36907102,211.59,211.33,7.6]
[1756470984315,6.55,211.58,211.33,7.6]
[1756470985617,317.96,211.62,211.37,7.6]
[1756470985818,227.12,211.68,211.39,7.6]
[1756470986217,7.37,211.75,211.46,7.6]
[1756470986618,317.92,211.92,211.52,52.36907102]
[1756470986921,7.37,211.91,211.61,7.6]
[1756470988117,7.37,211.91,211.63,7.6]
[1756470988314,7.37,211.91,211.67,52.36907102]
[1756470988515,7.37,212.07,211.68,7.6]
[1756470988716,7.37,212.07,211.75,7.6]
[1756470991214,317.8,212.09,211.76,62.0]
[1756470991614,7.37,212.08,211.76,62.0]
[1756470991819,7.37,212.08,211.79,52.36907102]
[1756470992020,7.37,212.08,211.77,7.6]
[1756470993628,7.37,212.02,211.77,7.6]
[1756470994023,7.37,212.02,211.66,4.2513]
[1756470994024,7.37,212.02,211.67,7.6]
[1756470994425,7.37,211.95,211.67,7.6]
[1756470995127,7.37,211.95,211.69,7.6]
[1756470995423,7.37,212.05,211.76,7.6]
[1756470995824,7.37,212.05,211.76,59.96907102]
[1756470996024,7.37,212.05,211.76,7.6]
[1756470996622,7.37,212.05,211.81,7.69]
[1756470997026,7.37,212.05,211.02,30.76735993]
[1756470997027,7.46,212.39,211.88,7.69]
[1756470997234,52.36907102,212.32,211.91,7.69]
[1756470997530,30.48817251,212.29,211.97,30.48817251]
[1756470997831,7.46,212.28,211.96,7.69]
[1756470998533,7.46,212.28,212.01,30.48817251]
[1756470998731,37.94817251,212.28,212.01,38.17817251]
[1756470999030,7.46,212.28,212.01,7.69]
[1756470999432,7.46,212.25,212.01,7.69]
[1756470999630,7.46,212.18,211.93,7.69]
[1756470999822,7.46,212.15,211.86,7.69]
[1756471000026,7.46,212.15,211.88,30.48817251]
[1756471000224,7.46,212.15,211.89,7.69]
[1756471001228,37.94817251,212.15,211.89,7.69]
[1756471001628,7.46,212.15,211.89,7.69]
[1756471003535,7.31848222,212.15,211.89,7.69]
[1756471003834,7.31848222,212.15,211.89,38.17817251]
[1756471005532,7.31848222,212.15,211.89,7.69]
[1756471006236,7.46,212.09,211.83,30.48817251]
[1756471006426,7.46,212.09,211.82,7.69]
[1756471006629,30.48817251,212.04,211.82,7.69]
[1756471006831,7.46,212.02,211.75,30.48817251]
[1756471007241,0.82132616,211.99,211.77,4.2491]
[1756471007537,7.46,212.02,211.76,7.69]
[1756471007740,37.94817251,212.02,211.76,7.69]
[1756471007933,37.94817251,212.02,211.69,7.69]
[1756471007934,7.46,211.95,211.69,7.69]
[1756471008844,0.82175284,211.89,211.69,7.69]
[1756471009038,7.46,211.95,211.69,7.69]
[1756471009333,7.46,211.95,211.72,7.69]
[1756471009536,31.30974104,211.98,211.77,30.48817251]
[1756471009537,0.82156853,211.98,211.77,30.48817251]
[1756471009741,7.46,212.03,211.78,7.69]